fUSD/lending_fUSD_20250202
["ID","MTS","AMOUNT","RATE_DAILY","PERIOD"]
[351275471,1738505467806,-636.47,0.00011232,2]
[351275472,1738505467815,-2806.74,0.00011232,2]
[351275473,1738505467825,-500.0,0.00011232,2]
[351275474,1738505467835,-519.11806407,0.00011232,2]
[351275475,1738505467845,-500.0,0.00011232,2]
[351275476,1738505467855,-500.0,0.00011232,2]
[351275477,1738505467865,-4457.82,0.00011232,2]
[351275478,1738505467875,-500.0,0.00011232,2]
[351275479,1738505467884,-1068.36,0.00011232,2]
[351275480,1738505467894,-500.0,0.00011232,2]
[351275481,1738505467904,-1431.15,0.00011232,2]
[351275482,1738505467913,-500.0,0.00011232,2]
[351275483,1738505467924,-8487.58014,0.00011232,2]
[351275484,1738505467934,-3317.75,0.00011232,2]
[351275485,1738505467944,-500.0,0.00011232,2]
[351275486,1738505467954,-500.0,0.00011232,2]
[351275487,1738505467963,-500.0,0.00011232,2]
[351275488,1738505467973,-500.0,0.00011232,2]
[351275489,1738505467983,-500.0,0.00011232,2]
[351275490,1738505467993,-500.0,0.00011232,2]
[351275491,1738505468003,-3236.23,0.00011232,2]
[351275492,1738505468012,-500.0,0.00011232,2]
[351275493,1738505468022,-500.0,0.00011232,2]
[351275494,1738505468032,-500.0,0.00011232,2]
[351275495,1738505468041,-998.58,0.00011232,2]
[351275496,1738505468051,-649.19,0.00011232,2]
[351275497,1738505468061,-500.0,0.00011232,2]
[351275498,1738505468071,-500.0,0.00011232,2]
[351275499,1738505468081,-3603.07,0.00011232,2]
[351275500,1738505468091,-496.919677,0.00011232,2]
[351275501,1738505468101,-647.76,0.00011232,2]
[351275502,1738505468111,-518.71,0.00011232,2]
[351275503,1738505468120,-1323.48,0.00011232,2]
[351275504,1738505468130,-2773.67,0.00011232,2]
[351275505,1738505468139,-500.0,0.00011232,2]
[351275506,1738505468150,-500.0,0.00011232,2]
[351275507,1738505468159,-500.0,0.00011232,2]
[351275508,1738505468169,-500.0,0.00011232,2]
[351275509,1738505468179,-1377.07,0.00011232,2]
[351275510,1738505468190,-3478.77,0.00011232,2]
[351275511,1738505468199,-500.0,0.00011232,2]
[351275512,1738505468209,-1559.79,0.00011232,2]
[351275513,1738505468218,-500.0,0.00011232,2]
[351275514,1738505468228,-993.51,0.00011232,2]
[351275515,1738505468238,-532.1,0.00011232,2]
[351275516,1738505468247,-500.0,0.00011232,2]
[351275517,1738505468256,-1353.14,0.00011232,2]
[351275518,1738505468266,-5584.57,0.00011232,2]
[351275519,1738505468275,-500.0,0.00011232,2]
[351275520,1738505468285,-1889.01,0.00011232,2]
[351275521,1738505468295,-500.0,0.00011232,2]
[351275522,1738505468305,-500.0,0.00011232,2]
[351275523,1738505468315,-628.58,0.00011232,2]
[351275524,1738505468324,-1706.09,0.00011232,2]
[351275525,1738505468334,-500.0,0.00011232,2]
[351275526,1738505468344,-500.0,0.00011232,2]
[351275527,1738505468354,-500.0,0.00011232,2]
[351275528,1738505468363,-966.92,0.00011232,2]
[351275529,1738505468373,-1416.56,0.00011232,2]
[351275530,1738505468383,-500.0,0.00011232,2]
[351275531,1738505468392,-555.56,0.00011232,2]
[351275532,1738505468402,-865.01,0.00011232,2]
[351275533,1738505468412,-820.07,0.00011232,2]
[351275534,1738505468421,-500.0,0.00011232,2]
[351275535,1738505468431,-6599.2,0.00011232,2]
[351275536,1738505468441,-500.0,0.00011232,2]
[351275537,1738505468451,-500.0,0.00011232,2]
[351275538,1738505468461,-4362.97,0.00011232,2]
[351275539,1738505468471,-3023.49,0.00011232,2]
[351275540,1738505468480,-1475.65,0.00011232,2]
[351275541,1738505468490,-500.0,0.00011232,2]
[351275542,1738505468499,-1337.09,0.00011232,2]
[351275543,1738505468508,-786.41,0.00011232,2]
[351275544,1738505468520,-1903.11,0.00011232,2]
[351275545,1738505468533,-1205.96,0.00011232,2]
[351275546,1738505468543,-2817.82,0.00011232,2]
[351275547,1738505468552,-2360.45,0.00011232,2]
[351275548,1738505468562,-500.0,0.00011232,2]
[351275549,1738505468572,-500.0,0.00011232,2]
[351275550,1738505468581,-500.0,0.00011232,2]
[351275551,1738505468591,-7826.051899,0.00011232,2]
[351275552,1738505468601,-934.52,0.00011232,2]
[351275553,1738505468611,-583.26,0.00011232,2]
[351275554,1738505468620,-1388.22,0.00011232,2]
[351275555,1738505468630,-500.0,0.00011232,2]
[351275556,1738505468639,-500.0,0.00011232,2]
[351275557,1738505468647,-500.0,0.00011232,2]
[351275558,1738505468657,-2432.51,0.00011232,2]
[351275559,1738505468667,-335.04086117,0.00011232,2]
[351275560,1738505468676,-609.67,0.00011232,2]
[351275561,1738505468688,-2243.95,0.00011232,2]
[351275562,1738505468697,-1262.46,0.00011232,2]
[351275563,1738505468707,-500.0,0.00011232,2]
[351275564,1738505468716,-2572.68,0.00011232,2]
[351275565,1738505468726,-500.0,0.00011232,2]
[351275566,1738505468735,-1181.19,0.00011232,2]
[351275567,1738505468745,-1950.74,0.00011232,2]
[351275568,1738505468755,-500.0,0.00011232,2]
[351275569,1738505468764,-500.0,0.00011232,2]
[351275570,1738505468774,-500.0,0.00011232,2]
[351275571,1738505468784,-500.0,0.00011232,2]
[351275572,1738505468793,-871.86,0.00011232,2]
[351275573,1738505468802,-500.0,0.00011232,2]
[351275574,1738505468812,-1126.88,0.00011232,2]
[351275575,1738505468822,-541.6,0.00011232,2]
[351275576,1738505468832,-2805.0,0.00011232,2]
[351275577,1738505468842,-476.543439,0.00011232,2]
[351275578,1738505468852,-500.0,0.00011232,2]
[351275579,1738505468863,-2478.61,0.00011232,2]
[351275580,1738505468873,-3490.69,0.00011232,2]
[351275581,1738505468883,-1886.99,0.00011232,2]
[351275582,1738505468892,-693.62,0.00011232,2]
[351275583,1738505468902,-1166.42,0.00011232,2]
[351275584,1738505468912,-4718.72,0.00011232,2]
[351275585,1738505468922,-646.83,0.00011232,2]
[351275586,1738505468934,-500.0,0.00011232,2]
[351275587,1738505468944,-500.0,0.00011232,2]
[351275588,1738505468953,-500.0,0.00011232,2]
[351275589,1738505468963,-1219.56,0.00011232,2]
[351275590,1738505468972,-500.0,0.00011232,2]
[351275591,1738505468983,-1713.43,0.00011232,2]
[351275592,1738505468993,-500.0,0.00011232,2]
[351275593,1738505469003,-764.96,0.00011232,2]
[351275594,1738505469013,-573.22355977,0.00011232,2]
[351275595,1738505469023,-742.31,0.00011232,2]
[351275596,1738505469223,-585.08,0.00011232,2]
[351275597,1738505469233,-5247.94,0.00011232,2]
[351275598,1738505469243,-5157.65,0.00011232,2]
[351275599,1738505469253,-1545.21,0.00011232,2]
[351275600,1738505469263,-2240.61,0.00011232,2]
[351275601,1738505469274,-500.0,0.00011232,2]
[351275602,1738505469283,-1481.58,0.00011232,2]
[351275603,1738505469294,-569.24572062,0.00011232,2]
[351275604,1738505469304,-535.67,0.00011232,2]
[351275605,1738505469314,-1399.19,0.00011232,2]
[351275606,1738505469324,-506.6894967,0.00011232,2]
[351275607,1738505469334,-1485.26,0.00011232,2]
[351275608,1738505469344,-500.0,0.00011232,2]
[351275609,1738505469353,-3226.98,0.00011232,2]
[351275610,1738505469363,-500.0,0.00011232,2]
[351275611,1738505469372,-1311.36,0.00011232,2]
[351275612,1738505469382,-500.0,0.00011232,2]
[351275613,1738505469392,-5680.36,0.00011232,2]
[351275614,1738505469402,-500.0,0.00011232,2]
[351275615,1738505469411,-500.0,0.00011232,2]
[351275616,1738505469421,-2300.21,0.00011232,2]
[351275617,1738505469431,-500.0,0.00011232,2]
[351275618,1738505469441,-2521.42,0.00011232,2]
[351275619,1738505469451,-2782.57,0.00011232,2]
[351275620,1738505469462,-1697.0,0.00011232,2]
[351275621,1738505469473,-525.07215584,0.00011232,2]
[351275622,1738505469483,-500.0,0.00011232,2]
[351275623,1738505469493,-500.0,0.00011232,2]
[351275624,1738505469503,-500.0,0.00011232,2]
[351275625,1738505469513,-1766.1,0.00011232,2]
[351275626,1738505469527,-1939.71,0.00011232,2]
[351275627,1738505469536,-500.0,0.00011232,2]
[351275628,1738505469546,-787.48,0.00011232,2]
[351275629,1738505469556,-1300.79,0.00011232,2]
[351275630,1738505469566,-3484.78,0.00011232,2]
[351275631,1738505469576,-500.0,0.00011232,2]
[351275632,1738505469586,-500.0,0.00011232,2]
[351275633,1738505469595,-512.49,0.00011232,2]
[351275634,1738505469605,-1213.23,0.00011232,2]
[351275635,1738505469615,-500.0,0.00011232,2]
[351275636,1738505469624,-500.0,0.00011232,2]
[351275637,1738505469634,-2449.26,0.00011232,2]
[351275638,1738505469643,-5629.82,0.00011232,2]
[351275639,1738505469653,-758.01,0.00011232,2]
[351275640,1738505469663,-500.0,0.00011232,2]
[351275641,1738505469673,-512.14024391,0.00011232,2]
[351275642,1738505469683,-848.99,0.00011232,2]
[351275643,1738505469693,-888.7,0.00011232,2]
[351275644,1738505469703,-500.0,0.00011232,2]
[351275645,1738505469712,-500.0,0.00011232,2]
[351275646,1738505469722,-4605.95,0.00011232,2]
[351275647,1738505469732,-2359.63,0.00011232,2]
[351275648,1738505469742,-892.49,0.00011232,2]
[351275649,1738505469751,-871.23,0.00011232,2]
[351275650,1738505469761,-1094.04,0.00011232,2]
[351275651,1738505469770,-6442.67,0.00011232,2]
[351275652,1738505469780,-500.0,0.00011232,2]
[351275653,1738505469789,-1297.27,0.00011232,2]
[351275654,1738505469799,-2052.81,0.00011232,2]
[351275655,1738505469808,-1553.08,0.00011232,2]
[351275656,1738505469818,-500.0,0.00011232,2]
[351275657,1738505469827,-500.0,0.00011232,2]
[351275658,1738505469837,-2655.71,0.00011232,2]
[351275659,1738505469846,-1885.94,0.00011232,2]
[351275660,1738505469856,-500.0,0.00011232,2]
[351275661,1738505469865,-500.0,0.00011232,2]
[351275662,1738505469874,-500.0,0.00011232,2]
[351275663,1738505469883,-10441.41,0.00011232,2]
[351275664,1738505469892,-500.0,0.00011232,2]
[351275665,1738505469901,-1012.3,0.00011232,2]
[351275666,1738505469911,-500.0,0.00011232,2]
[351275667,1738505469920,-4514.04,0.00011232,2]
[351275668,1738505469929,-3003.61,0.00011232,2]
[351275669,1738505469938,-2902.94,0.00011232,2]
[351275670,1738505469947,-639.96377821,0.00011232,2]
[351275671,1738505469956,-1964.45,0.00011232,2]
[351275672,1738505469964,-4716.6,0.00011232,2]
[351275673,1738505469974,-500.0,0.00011232,2]
[351275674,1738505469983,-1593.35,0.00011232,2]
[351275675,1738505469992,-174.31292824,0.00011232,2]
[351275676,1738505470001,-500.0,0.00011232,2]
[351275677,1738505470010,-500.0,0.00011232,2]
[351275678,1738505470020,-1637.22,0.00011232,2]
[351275679,1738505470029,-3416.51,0.00011232,2]
[351275680,1738505470038,-882.55,0.00011232,2]
[351275681,1738505470047,-500.0,0.00011232,2]
[351275682,1738505470056,-500.0,0.00011232,2]
[351275683,1738505470065,-4127.67,0.00011232,2]
[351275684,1738505470074,-500.0,0.00011232,2]
[351275685,1738505470083,-9172.95,0.00011232,2]
[351275686,1738505470092,-716.69,0.00011232,2]
[351275687,1738505470102,-500.0,0.00011232,2]
[351275688,1738505470111,-500.0,0.00011232,2]
[351275689,1738505470120,-500.0,0.00011232,2]
[351275690,1738505470129,-500.0,0.00011232,2]
[351275691,1738505470138,-3935.05,0.00011232,2]
[351275692,1738505470147,-994.51,0.00011232,2]
[351275693,1738505470156,-500.0,0.00011232,2]
[351275694,1738505470165,-2231.33,0.00011232,2]
[351275695,1738505470175,-646.36,0.00011232,2]
[351275696,1738505470184,-612.75,0.00011232,2]
[351275697,1738505470194,-7703.46,0.00011232,2]
[351275698,1738505470203,-6130.86,0.00011232,2]
[351275699,1738505470213,-1008.29,0.00011232,2]
[351275700,1738505470222,-4888.75,0.00011232,2]
[351275701,1738505470232,-4468.98,0.00011232,2]
[351275702,1738505470241,-874.52,0.00011232,2]
[351275703,1738505470250,-500.0,0.00011232,2]
[351275704,1738505470260,-500.0,0.00011232,2]
[351275705,1738505470269,-500.0,0.00011232,2]
[351275706,1738505470278,-500.0,0.00011232,2]
[351275707,1738505470288,-7017.85,0.00011232,2]
[351275708,1738505470297,-7067.83,0.00011232,2]
[351275709,1738505470307,-500.0,0.00011232,2]
[351275710,1738505470317,-504.51,0.00011232,2]
[351275711,1738505470326,-386.58,0.00011232,2]
[351275712,1738505470335,-1694.57,0.00011232,2]
[351275713,1738505470345,-809.09,0.00011232,2]
[351275714,1738505470355,-500.0,0.00011232,2]
[351275715,1738505470365,-1463.68,0.00011232,2]
[351275716,1738505470374,-500.0,0.00011232,2]
[351275717,1738505470383,-500.0,0.00011232,2]
[351275718,1738505470393,-957.1,0.00011232,2]
[351275719,1738505470402,-248.45046464,0.00011232,2]
[351275720,1738505470412,-500.0,0.00011232,2]
[351275721,1738505470421,-25450.62,0.00011232,2]
[351275722,1738505470431,-5901.35,0.00011232,2]
[351275723,1738505470441,-3194.77,0.00011232,2]
[351275724,1738505470451,-972.11,0.00011232,2]
[351275725,1738505470460,-500.0,0.00011232,2]
[351275726,1738505470470,-500.0,0.00011232,2]
[351275727,1738505470480,-500.0,0.00011232,2]
[351275728,1738505470489,-978.28,0.00011232,2]
[351275729,1738505470500,-1927.34,0.00011232,2]
[351275730,1738505470510,-500.0,0.00011232,2]
[351275731,1738505470520,-500.0,0.00011232,2]
[351275732,1738505470532,-1313.38,0.00011232,2]
[351275733,1738505470542,-2290.65,0.00011232,2]
[351275734,1738505470551,-1822.98,0.00011232,2]
[351275735,1738505470561,-500.0,0.00011232,2]
[351275736,1738505470570,-500.0,0.00011232,2]
[351275737,1738505470579,-500.0,0.00011232,2]
[351275738,1738505470587,-778.33,0.00011232,2]
[351275739,1738505470596,-2811.74,0.00011232,2]
[351275740,1738505470607,-500.0,0.00011232,2]
[351275741,1738505470617,-500.0,0.00011232,2]
[351275742,1738505470626,-563.21275581,0.00011232,2]
[351275743,1738505470635,-4241.49,0.00011232,2]
[351275744,1738505470645,-500.0,0.00011232,2]
[351275745,1738505470654,-2753.15,0.00011232,2]
[351275746,1738505470666,-500.0,0.00011232,2]
[351275747,1738505470676,-3179.79,0.00011232,2]
[351275748,1738505470687,-11875.49,0.00011232,2]
[351275749,1738505470697,-590.79,0.00011232,2]
[351275750,1738505470707,-500.0,0.00011232,2]
[351275751,1738505470716,-2422.99,0.00011232,2]
[351275752,1738505470726,-500.0,0.00011232,2]
[351275753,1738505470735,-1805.01,0.00011232,2]
[351275754,1738505470745,-500.0,0.00011232,2]
[351275755,1738505470755,-500.0,0.00011232,2]
[351275756,1738505470765,-522.1504203,0.00011232,2]
[351275757,1738505470775,-1720.61,0.00011232,2]
[351275758,1738505470785,-8941.69,0.00011232,2]
[351275759,1738505470794,-890.83,0.00011232,2]
[351275760,1738505470804,-500.0,0.00011232,2]
[351275761,1738505470813,-500.0,0.00011232,2]
[351275762,1738505470823,-924.98,0.00011232,2]
[351275763,1738505470832,-2796.09,0.00011232,2]
[351275764,1738505470842,-500.0,0.00011232,2]
[351275765,1738505470852,-753.96,0.00011232,2]
[351275766,1738505470861,-2827.17,0.00011232,2]
[351275767,1738505470871,-1515.55,0.00011232,2]
[351275768,1738505470880,-502.834558,0.00011232,2]
[351275769,1738505470890,-500.0,0.00011232,2]
[351275770,1738505470899,-500.0,0.00011232,2]
[351275771,1738505470909,-8022.15,0.00011232,2]
[351275772,1738505470919,-500.0,0.00011232,2]
[351275773,1738505470928,-1171.94,0.00011232,2]
[351275774,1738505470938,-741.26,0.00011232,2]
[351275775,1738505470947,-1314.16,0.00011232,2]
[351275776,1738505470957,-500.0,0.00011232,2]
[351275777,1738505470967,-500.0,0.00011232,2]
[351275778,1738505470977,-500.0,0.00011232,2]
[351275779,1738505470986,-596.08,0.00011232,2]
[351275780,1738505470996,-2587.99,0.00011232,2]
[351275781,1738505471005,-500.0,0.00011232,2]
[351275782,1738505471015,-770.44,0.00011232,2]
[351275783,1738505471024,-155.292379,0.00011232,2]
[351275784,1738505471033,-3707.36,0.00011232,2]
[351275785,1738505471043,-500.0,0.00011232,2]
[351275786,1738505471052,-500.0,0.00011232,2]
[351275787,1738505471062,-500.0,0.00011232,2]
[351275788,1738505471071,-651.22,0.00011232,2]
[351275789,1738505471081,-500.0,0.00011232,2]
[351275790,1738505471090,-500.0,0.00011232,2]
[351275791,1738505471100,-500.0,0.00011232,2]
[351275792,1738505471110,-369.61856486,0.00011232,2]
[351275793,1738505471119,-500.0,0.00011232,2]
[351275794,1738505471129,-1512.68,0.00011267,2]
[351275795,1738505471138,-1198.33,0.00011267,2]
[351275796,1738505471148,-1656.84,0.00011267,2]
[351275797,1738505471158,-206.75551579,0.00011269,2]
[351275798,1738505471168,-19262.07849875,0.00011269,2]
[351275799,1738505471178,-464.72,0.00011281,2]
[351275800,1738505471188,-9999.99,0.00011281,2]
[351275801,1738505471198,-999.99,0.00011281,2]
[351275802,1738505471208,-16683.06,0.00011281,2]
[351275803,1738505471218,-434.43590772,0.00011359,2]
[351275804,1738505471228,-1512.68,0.00011368,2]
[351275805,1738505471238,-1512.68,0.00011368,2]
[351275806,1738505471247,-500.0,0.00011368,2]
[351275807,1738505471257,-1198.33,0.00011368,2]
[351275808,1738505471267,-1198.33,0.00011368,2]
[351275809,1738505471277,-1198.33,0.00011368,2]
[351275810,1738505471287,-1549.91,0.00011368,2]
[351275811,1738505471296,-1549.91,0.00011368,2]
[351275812,1738505471306,-1549.91,0.00011368,2]
[351275813,1738505471316,-3360.44,0.00011368,2]
[351275814,1738505471326,-3360.44,0.00011368,2]
[351275815,1738505471336,-3360.44,0.00011368,2]
[351275816,1738505471346,-3360.44,0.00011368,2]
[351275817,1738505471356,-1656.84,0.00011368,2]
[351275818,1738505471366,-1656.84,0.00011368,2]
[351275819,1738505471376,-287.71096134,0.00011369,2]
[351275820,1738505471385,-500.0,0.00011369,2]
[351275821,1738505471395,-500.0,0.00011369,2]
[351275822,1738505471404,-500.0,0.00011369,2]
[351275823,1738505471413,-500.0,0.00011369,2]
[351275824,1738505471423,-345.87899019,0.00011369,2]
[351275825,1738505471432,-502.31649904,0.00011369,2]
[351275826,1738505471444,-559.46,0.00011369,2]
[351275827,1738505471453,-500.0,0.00011369,2]
[351275828,1738505471463,-500.0,0.00011369,2]
[351275829,1738505471473,-500.0,0.00011369,2]
[351275830,1738505471483,-803.7,0.00011369,2]
[351275831,1738505471492,-500.0,0.00011369,2]
[351275832,1738505471502,-500.0,0.00011369,2]
[351275833,1738505471512,-511.0141849,0.00011369,2]
[351275834,1738505471522,-500.0,0.00011369,2]
[351275835,1738505471533,-500.0,0.00011369,2]
[351275836,1738505471543,-500.0,0.00011369,2]
[351275837,1738505471552,-801.06,0.00011369,2]
[351275838,1738505471563,-500.0,0.00011369,2]
[351275839,1738505471573,-500.0,0.00011369,2]
[351275840,1738505471583,-773.23,0.00011369,2]
[351275841,1738505471592,-500.0,0.00011369,2]
[351275842,1738505471604,-500.0,0.00011369,2]
[351275843,1738505471615,-512.38254318,0.00011369,2]
[351275844,1738505471624,-500.0,0.00011369,2]
[351275845,1738505471703,-759.9,0.00011369,2]
[351275846,1738505471713,-1260.15,0.00011369,2]
[351275847,1738505471722,-589.03,0.00011369,2]
[351275848,1738505471732,-500.0,0.00011369,2]
[351275849,1738505471742,-500.0,0.00011369,2]
[351275850,1738505471752,-500.0,0.00011369,2]
[351275851,1738505471761,-500.0,0.00011369,2]
[351275852,1738505471772,-500.0,0.00011369,2]
[351275853,1738505471781,-500.0,0.00011369,2]
[351275854,1738505471791,-500.0,0.00011369,2]
[351275855,1738505471800,-505.25341364,0.00011369,2]
[351275856,1738505471810,-1063.41,0.00011369,2]
[351275857,1738505471819,-673.02,0.00011369,2]
[351275858,1738505471828,-504.04839644,0.00011369,2]
[351275859,1738505471838,-500.0,0.00011369,2]
[351275860,1738505471847,-500.0,0.00011369,2]
[351275861,1738505471857,-500.0,0.00011369,2]
[351275862,1738505471866,-500.0,0.00011369,2]
[351275863,1738505471876,-821.68,0.00011369,2]
[351275864,1738505471885,-549.88,0.00011369,2]
[351275865,1738505471895,-500.0,0.00011369,2]
[351275866,1738505471904,-500.0,0.00011369,2]
[351275867,1738505471914,-500.0,0.00011369,2]
[351275868,1738505471923,-703.15,0.00011369,2]
[351275869,1738505471932,-520.34511259,0.00011369,2]
[351275870,1738505471942,-500.0,0.00011369,2]
[351275871,1738505471952,-828.9,0.00011369,2]
[351275872,1738505471961,-500.0,0.00011369,2]
[351275873,1738505471971,-500.0,0.00011369,2]
[351275874,1738505471980,-627.47,0.00011369,2]
[351275875,1738505471989,-731.11,0.00011369,2]
[351275876,1738505471999,-500.0,0.00011369,2]
[351275877,1738505472008,-500.0,0.00011369,2]
[351275878,1738505472019,-500.0,0.00011369,2]
[351275879,1738505472029,-500.0,0.00011369,2]
[351275880,1738505472038,-500.0,0.00011369,2]
[351275881,1738505472047,-500.0,0.00011369,2]
[351275882,1738505472057,-592.69,0.00011369,2]
[351275883,1738505472066,-503.81913116,0.00011369,2]
[351275884,1738505472075,-504.32627545,0.00011369,2]
[351275885,1738505472085,-514.25843128,0.00011369,2]
[351275886,1738505472094,-500.0,0.00011369,2]
[351275887,1738505472104,-500.0,0.00011369,2]
[351275888,1738505472113,-500.0,0.00011369,2]
[351275889,1738505472122,-500.0,0.00011369,2]
[351275890,1738505472132,-500.0,0.00011369,2]
[351275891,1738505472142,-500.0,0.00011369,2]
[351275892,1738505472151,-151.0,0.00011369,2]
[351275893,1738505472160,-264.25864782,0.00011369,2]
[351275894,1738505472170,-151.0,0.00011369,2]
[351275895,1738505472179,-500.0,0.00011369,2]
[351275896,1738505472190,-625.97,0.00011369,2]
[351275897,1738505472200,-500.0,0.00011369,2]
[351275898,1738505472210,-500.0,0.00011369,2]
[351275899,1738505472219,-500.0,0.00011369,2]
[351275900,1738505472229,-500.0,0.00011369,2]
[351275901,1738505472238,-500.0,0.00011369,2]
[351275902,1738505472248,-500.0,0.00011369,2]
[351275903,1738505472258,-500.0,0.00011369,2]
[351275904,1738505472267,-500.0,0.00011369,2]
[351275905,1738505472276,-661.86,0.00011369,2]
[351275906,1738505472286,-552.57,0.00011369,2]
[351275907,1738505472296,-3015.63,0.00011369,2]
[351275908,1738505472306,-500.0,0.00011369,2]
[351275909,1738505472316,-500.0,0.00011369,2]
[351275910,1738505472325,-500.0,0.00011369,2]
[351275911,1738505472335,-635.12,0.00011369,2]
[351275912,1738505472344,-511.08,0.00011369,2]
[351275913,1738505472354,-1112.86,0.00011369,2]
[351275914,1738505472364,-910.85,0.00011369,2]
[351275915,1738505472374,-500.0,0.00011369,2]
[351275916,1738505472383,-500.0,0.00011369,2]
[351275917,1738505472393,-500.0,0.00011369,2]
[351275918,1738505472403,-500.0,0.00011369,2]
[351275919,1738505472412,-738.14,0.00011369,2]
[351275920,1738505472422,-531.66966804,0.00011369,2]
[351275921,1738505472431,-500.0,0.00011369,2]
[351275922,1738505472442,-1482.76,0.00011369,2]
[351275923,1738505472451,-500.0,0.00011369,2]
[351275924,1738505472461,-500.0,0.00011369,2]
[351275925,1738505472470,-500.0,0.00011369,2]
[351275926,1738505472480,-500.0,0.00011369,2]
[351275927,1738505472489,-545.77,0.00011369,2]
[351275928,1738505472499,-500.0,0.00011369,2]
[351275929,1738505472508,-735.2,0.00011369,2]
[351275930,1738505472519,-500.0,0.00011369,2]
[351275931,1738505472531,-717.38,0.00011369,2]
[351275932,1738505472541,-500.0,0.00011369,2]
[351275933,1738505472551,-500.0,0.00011369,2]
[351275934,1738505472560,-500.0,0.00011369,2]
[351275935,1738505472570,-502.7453122,0.00011369,2]
[351275936,1738505472579,-2333.39,0.00011369,2]
[351275937,1738505472589,-500.0,0.00011369,2]
[351275938,1738505472599,-386.26309483,0.00011369,2]
[351275939,1738505472608,-618.28,0.00011369,2]
[351275940,1738505472618,-500.0,0.00011369,2]
[351275941,1738505472627,-544.98765903,0.00011369,2]
[351275942,1738505472636,-500.0,0.00011369,2]
[351275943,1738505472646,-500.0,0.00011369,2]
[351275944,1738505472656,-500.0,0.00011369,2]
[351275945,1738505472666,-500.0,0.00011369,2]
[351275946,1738505472675,-2305.89,0.00011369,2]
[351275947,1738505472684,-500.0,0.00011369,2]
[351275948,1738505472694,-703.3,0.00011369,2]
[351275949,1738505472703,-2217.46,0.00011369,2]
[351275950,1738505472712,-573.42,0.00011369,2]
[351275951,1738505472722,-500.0,0.00011369,2]
[351275952,1738505472731,-505.7915748,0.00011369,2]
[351275953,1738505472740,-500.0,0.00011369,2]
[351275954,1738505472750,-2053.36,0.00011369,2]
[351275955,1738505472759,-1106.04,0.00011369,2]
[351275956,1738505472769,-2139.13,0.00011369,2]
[351275957,1738505472778,-500.0,0.00011369,2]
[351275958,1738505472787,-500.0,0.00011369,2]
[351275959,1738505472797,-500.0,0.00011369,2]
[351275960,1738505472806,-1316.15,0.00011369,2]
[351275961,1738505472815,-500.0,0.00011369,2]
[351275962,1738505472825,-500.0,0.00011369,2]
[351275963,1738505472835,-500.0,0.00011369,2]
[351275964,1738505472845,-366.46507062,0.00011369,2]
[351275965,1738505472855,-500.0,0.00011369,2]
[351275966,1738505472864,-500.0,0.00011369,2]
[351275967,1738505472873,-548.83,0.00011369,2]
[351275968,1738505472883,-553.21,0.00011369,2]
[351275969,1738505472893,-460.48192505,0.00011369,2]
[351275970,1738505472903,-525.3,0.00011369,2]